fUSD/lending_fUSD_20241109
["ID","MTS","AMOUNT","RATE_DAILY","PERIOD"]
[341749509,1731193847716,-189.782198,0.0001465,2]
[341749510,1731193847725,-164.33035333,0.0001465,2]
[341749511,1731193847735,-162.84533251,0.0001465,2]
[341749512,1731193847746,-1874.46796252,0.00014678,2]
[341749513,1731193847757,-186.8,0.00014698,2]
[341749514,1731193847766,-159.760248,0.000147,2]
[341749515,1731193847775,-150.0,0.00014701,2]
[341749516,1731193847784,-150.0,0.00014703,2]
[341749517,1731193847794,-150.0,0.00014708,2]
[341749518,1731193847803,-150.0,0.0001471,2]
[341749519,1731193847813,-105.73631553,0.00014711,2]
[341749520,1731193847826,-44.26368447,0.00014711,2]
[341749521,1731193847836,-150.0,0.00014711,2]
[341749522,1731193847845,-150.0,0.00014714,2]
[341749523,1731193847856,-150.0,0.00014716,2]
[341749524,1731193847866,-125.8245303,0.00014716,2]
[341749525,1731193847877,-24.1754697,0.00014716,2]
[341749526,1731193847886,-150.0,0.00014718,2]
[341749527,1731193847895,-150.0,0.00014719,2]
[341749528,1731193847905,-150.0,0.00014721,2]
[341749529,1731193847915,-150.0,0.00014724,2]
[341749530,1731193847924,-150.0,0.00014726,2]
[341749531,1731193847934,-1990.0,0.00014729,2]
[341749532,1731193847943,-1922.0,0.00014729,2]
[341749533,1731193847952,-919.58,0.00014729,2]
[341749534,1731193847961,-150.0,0.00014731,2]
[341749535,1731193847970,-1258.0,0.00014731,2]
[341749536,1731193847981,-1900.12283845,0.00014731,2]
[341749537,1731193848009,-1008.87716155,0.00014731,2]
[341749538,1731193848018,-436.95180622,0.00014731,2]
[341749541,1731194200688,557.25,0.00027,60]
[341749543,1731194267090,150.0,0.00011746,2]
[341749544,1731194267112,150.0,0.00011746,2]
[341749545,1731194267135,150.0,0.00011746,2]
[341749546,1731194267156,150.0,0.00011746,2]
[341749547,1731194267179,150.0,0.00011746,2]
[341749548,1731194267200,150.0,0.00011746,2]
[341749549,1731194267227,150.0,0.00011746,2]
[341749550,1731194267249,25.39,0.00011746,2]
[341749567,1731194836502,183.92398563,0.00027,60]
[341749569,1731194922508,150.0,0.00010779,2]
[341749570,1731194922529,2.63,0.00010779,2]
[341749585,1731194990791,147.37,0.00011547,2]
[341749586,1731194990827,150.0,0.00011547,2]
[341749587,1731194990864,150.0,0.00011547,2]
[341749588,1731194990901,150.0,0.00011547,2]
[341749589,1731194990937,150.0,0.00011547,2]
[341749590,1731194990972,194.72,0.00011547,2]
[341749591,1731194991021,139.54,0.00011547,2]
[341749601,1731195031924,-836.14,0.0001343,2]
[341749602,1731195031937,-250.0,0.00013471,2]
[341749603,1731195031947,-23900.0,0.00013481,2]
[341749604,1731195031959,-1000.0,0.00013494,2]
[341749605,1731195031968,-500.0,0.00013507,2]
[341749606,1731195031977,-250.0,0.00013511,2]
[341749607,1731195031987,-164.44,0.00013575,2]
[341749608,1731195031996,-177.24,0.00013607,2]
[341749609,1731195032005,-211.98,0.0001365,2]
[341749610,1731195032015,-999.99,0.00013691,2]
[341749611,1731195032024,-443.18,0.00013691,2]
[341749612,1731195032033,-255.73,0.00013691,2]
[341749613,1731195032044,-200.0,0.00013708,2]
[341749614,1731195032053,-1081.63,0.0001381,2]
[341749615,1731195032063,-151.45,0.00013832,2]
[341749616,1731195032072,-151.45,0.0001386,2]
[341749617,1731195032082,-151.45,0.00013887,2]
[341749618,1731195032092,-151.45,0.00013915,2]
[341749619,1731195032101,-151.45,0.00013943,2]
[341749621,1731195032110,-151.45,0.0001397,2]
[341749623,1731195032120,-992.29,0.00014,2]
[341749625,1731195032129,-865.4,0.000141,2]
[341749626,1731195032139,-834.228,0.000143,2]
[341749627,1731195032152,-697.95,0.000143,2]
[341749628,1731195032161,-1000.0,0.000143,2]
[341749629,1731195032170,-407.85134772,0.00014399,2]
[341749630,1731195032180,-467.50824582,0.00014399,2]
[341749631,1731195032189,-150.0,0.00014399,2]
[341749632,1731195032199,-1398.0,0.00014399,2]
[341749633,1731195032208,-26167.22990495,0.000144,2]
[341749634,1731195032301,-932.62286945,0.000144,2]
[341749635,1731195032358,-7679.80374554,0.000144,2]
[341749636,1731195032393,-1173.88307995,0.000144,2]
[341749637,1731195032404,-773.11373558,0.000144,2]
[341749641,1731195037824,-63273.34666453,0.000144,2]
[341749642,1731195037834,-331.2805,0.000144,2]
[341749643,1731195037843,-2809.1521,0.000144,2]
[341749644,1731195037852,-150.0,0.000144,2]
[341749645,1731195037861,-150.0,0.000144,2]
[341749646,1731195037870,-300.0,0.000144,2]
[341749647,1731195037880,-1000.0,0.000144,2]
[341749648,1731195037889,-2500.0,0.0001455,2]
[341749649,1731195037898,-2500.0,0.0001455,2]
[341749650,1731195037907,-382.8256,0.00014579,2]
[341749651,1731195037916,-2167.67878547,0.00014579,2]
[341749652,1731195037925,-763.2083,0.00014582,2]
[341749653,1731195037935,-1000.0,0.000146,2]
[341749654,1731195037944,-2167.67878541,0.00014615,2]
[341749655,1731195037953,-2167.67878541,0.0001465,2]
[341749656,1731195037963,-1475.7336,0.00014679,2]
[341749657,1731195037972,-1000.0,0.00014679,2]
[341749658,1731195037981,-362.09,0.00014682,2]
[341749659,1731195037990,-300.0,0.00014682,2]
[341749660,1731195037999,-362.09,0.00014682,2]
[341749661,1731195038008,-150.0,0.00014687,2]
[341749662,1731195038017,-150.0,0.00014687,2]
[341749663,1731195038026,-150.0,0.00014687,2]
[341749664,1731195038035,-432.91,0.00014687,2]
[341749665,1731195038045,-150.0,0.00014687,2]
[341749666,1731195038054,-150.0,0.00014687,2]
[341749667,1731195038063,-432.91,0.00014687,2]
[341749668,1731195038072,-150.0,0.00014687,2]
[341749669,1731195038081,-865.19,0.00014687,2]
[341749670,1731195038090,-150.0,0.00014687,2]
[341749671,1731195038099,-150.0,0.00014687,2]
[341749672,1731195038108,-432.91,0.00014687,2]
[341749673,1731195038117,-150.0,0.00014687,2]
[341749674,1731195038126,-432.91,0.00014687,2]
[341749675,1731195038135,-432.91,0.00014687,2]
[341749676,1731195038147,-150.0,0.00014699,2]
[341749677,1731195038156,-150.0,0.00014701,2]
[341749678,1731195038165,-150.0,0.00014702,2]
[341749679,1731195038174,-150.0,0.00014707,2]
[341749680,1731195038184,-150.0,0.00014707,2]
[341749682,1731195038193,-150.0,0.00014709,2]
[341749684,1731195038202,-150.0,0.0001471,2]
[341749686,1731195038211,-1500.0,0.00014714,2]
[341749688,1731195038223,-2237.4090143,0.0001472,2]
[341749690,1731195038232,-449.9887601,0.0001472,2]
[341749692,1731195038241,-22639.7386881,0.0001472,2]
[341749694,1731195038250,-745.4024405,0.0001472,2]
[341749696,1731195038258,-9629.6812379,0.0001472,2]
[341749698,1731195038267,-7195.2767423,0.0001472,2]
[341749700,1731195038277,-150.0,0.0001472,2]
[341749702,1731195038286,-150.0,0.0001472,2]
[341749704,1731195038296,-150.0,0.00014721,2]
[341749706,1731195038310,-150.0,0.00014721,2]
[341749708,1731195038319,-150.0,0.00014722,2]
[341749710,1731195038329,-164.69155322,0.00014723,2]
[341749712,1731195038338,-150.0,0.00014723,2]
[341749714,1731195038347,-150.0,0.00014726,2]
[341749716,1731195038356,-151.27605965,0.0001473,2]
[341749718,1731195038365,-322.21658941,0.0001473,2]
[341749720,1731195038374,-2000.0,0.00014731,2]
[341749722,1731195038384,-200.0,0.00014731,2]
[341749724,1731195038393,-150.0,0.00014731,2]
[341749726,1731195038402,-152.6915162,0.00014732,2]
[341749728,1731195038411,-150.0,0.00014734,2]
[341749730,1731195038421,-150.0,0.00014735,2]
[341749732,1731195038430,-150.0,0.00014736,2]
[341749734,1731195038439,-918.62761358,0.00014737,2]
[341749736,1731195038448,-150.0,0.00014737,2]
[341749738,1731195038457,-1500.0,0.00014746,2]
[341749740,1731195038466,-150.0,0.00014747,2]
[341749742,1731195038475,-164.69155318,0.00014748,2]
[341749744,1731195038484,-150.0,0.00014749,2]
[341749745,1731195038493,-150.0,0.00014757,2]
[341749747,1731195038502,-150.0,0.00014757,2]
[341749749,1731195038510,-150.0,0.00014757,2]
[341749751,1731195038519,-150.0,0.00014759,2]
[341749754,1731195038530,-150.0,0.0001476,2]
[341749756,1731195038539,-150.0,0.0001476,2]
[341749758,1731195038549,-282.49658863,0.00014762,2]
[341749760,1731195038559,-150.0,0.00014767,2]
[341749762,1731195038568,-150.0,0.00014769,2]
[341749764,1731195038578,-150.0,0.0001477,2]
[341749766,1731195038587,-150.0,0.00014771,2]
[341749768,1731195038596,-164.69155318,0.00014774,2]
[341749770,1731195038605,-150.0,0.00014776,2]
[341749772,1731195038614,-150.0,0.00014776,2]
[341749774,1731195038623,-150.0,0.00014776,2]
[341749776,1731195038632,-33161.4263,0.00014779,2]
[341749778,1731195038642,-232.11378873,0.00014779,2]
[341749780,1731195038651,-156.37410551,0.0001478,2]
[341749782,1731195038660,-150.0,0.0001478,2]
[341749784,1731195038670,-150.0,0.00014781,2]
[341749786,1731195038679,-150.0,0.00014783,2]
[341749788,1731195038688,-150.0,0.00014786,2]
[341749790,1731195038698,-150.0,0.00014788,2]
[341749792,1731195038707,-150.0,0.0001479,2]
[341749794,1731195038716,-150.0,0.00014793,2]
[341749796,1731195038725,-150.0,0.00014796,2]
[341749798,1731195038735,-164.69155318,0.00014799,2]
[341749800,1731195038745,-150.0,0.00014799,2]
[341749802,1731195038754,-200.0,0.000148,2]
[341749804,1731195038763,-150.0,0.000148,2]
[341749806,1731195038772,-150.0,0.00014802,2]
[341749808,1731195038782,-150.0,0.00014803,2]
[341749810,1731195038791,-150.0,0.00014805,2]
[341749812,1731195038802,-150.0,0.00014805,2]
[341749814,1731195038812,-150.0,0.0001481,2]
[341749816,1731195038821,-150.0,0.00014811,2]
[341749818,1731195038830,-150.0,0.00014811,2]
[341749820,1731195038839,-150.0,0.00014817,2]
[341749822,1731195038849,-1922.0,0.00014823,2]
[341749824,1731195038858,-814.0,0.00014823,2]
[341749826,1731195038867,-921.0,0.00014823,2]
[341749828,1731195038876,-1258.0,0.00014823,2]
[341749830,1731195038885,-2909.0,0.00014823,2]
[341749832,1731195038894,-3464.0,0.00014823,2]
[341749834,1731195038903,-1090.0,0.00014823,2]
[341749836,1731195038912,-169.098,0.00014823,2]
[341749838,1731195038921,-5926.0,0.00014823,2]
[341749840,1731195038930,-1253.0,0.00014823,2]
[341749842,1731195038939,-524.975,0.00014823,2]
[341749844,1731195038947,-631.0,0.00014823,2]
[341749846,1731195038957,-1158.0,0.00014823,2]
[341749848,1731195038966,-164.69155318,0.00014824,2]
[341749850,1731195038975,-150.0,0.00014825,2]
[341749852,1731195038984,-150.0,0.0001483,2]
[341749854,1731195038993,-150.0,0.0001483,2]
[341749856,1731195039002,-150.0,0.00014834,2]
[341749858,1731195039011,-150.0,0.00014844,2]
[341749860,1731195039020,-150.0,0.00014844,2]
[341749862,1731195039029,-150.0,0.00014847,2]
[341749864,1731195039038,-164.69155318,0.00014849,2]
[341749866,1731195039046,-150.0,0.00014851,2]
[341749868,1731195039056,-150.0,0.00014852,2]
[341749870,1731195039064,-150.0,0.00014855,2]
[341749872,1731195039074,-150.0,0.00014858,2]
[341749874,1731195039083,-150.0,0.0001486,2]
[341749876,1731195039092,-150.0,0.00014863,2]
[341749878,1731195039102,-150.0,0.00014864,2]
[341749880,1731195039111,-152.201,0.00014864,2]
[341749882,1731195039120,-150.0,0.00014864,2]
[341749884,1731195039129,-150.0,0.00014868,2]
[341749886,1731195039139,-150.0,0.00014868,2]
[341749888,1731195039151,-150.0,0.00014868,2]
[341749890,1731195039160,-150.0,0.0001487,2]
[341749892,1731195039169,-164.69155318,0.00014875,2]
[341749894,1731195039179,-1500.0,0.00014876,2]
[341749896,1731195039189,-150.0,0.00014877,2]
[341749898,1731195039198,-200.0,0.00014878,2]
[341749900,1731195039208,-150.0,0.00014879,2]
[341749902,1731195039217,-150.0,0.0001488,2]
[341749904,1731195039227,-150.0,0.00014881,2]
[341749906,1731195039237,-150.58161632,0.00014881,2]
[341749908,1731195039247,-500.0,0.00014881,2]
[341749910,1731195039256,-500.0,0.00014881,2]
[341749912,1731195039265,-920.66013814,0.00014881,2]
[341749914,1731195039274,-150.0,0.00014881,2]
[341749916,1731195039283,-150.0,0.00014881,2]
[341749918,1731195039292,-200.46554873,0.00014881,2]
[341749920,1731195039305,-150.0,0.00014881,2]
[341749922,1731195039314,-150.0,0.00014881,2]
[341749924,1731195039324,-155.19974195,0.00014881,2]
[341749926,1731195039333,-150.0,0.00014881,2]
[341749928,1731195039342,-150.0,0.00014881,2]
[341749930,1731195039352,-150.0,0.00014881,2]
[341749932,1731195039361,-197.84408945,0.00014881,2]
[341749934,1731195039370,-150.0,0.00014881,2]
[341749936,1731195039379,-150.0,0.00014881,2]
[341749938,1731195039388,-239.47289828,0.00014881,2]
[341749940,1731195039397,-150.0,0.00014881,2]
[341749942,1731195039406,-500.0,0.00014881,2]
[341749944,1731195039415,-500.0,0.00014881,2]
[341749946,1731195039424,-500.0,0.00014881,2]
[341749948,1731195039433,-841.72763,0.00014881,2]
[341749950,1731195039442,-150.0,0.00014881,2]
[341749952,1731195039451,-509.0,0.00014881,2]
[341749954,1731195039461,-509.0,0.00014881,2]
[341749956,1731195039470,-509.0,0.00014881,2]
[341749958,1731195039481,-509.0,0.00014881,2]
[341749960,1731195039490,-509.0,0.00014881,2]
[341749962,1731195039500,-509.0,0.00014881,2]
[341749966,1731195039509,-509.0,0.00014881,2]
[341749968,1731195039518,-509.0,0.00014881,2]
[341749970,1731195039527,-509.0,0.00014881,2]
[341749972,1731195039536,-509.0,0.00014881,2]
[341749973,1731195039547,-509.0,0.00014881,2]
[341749975,1731195039556,-509.0,0.00014881,2]
[341749977,1731195039565,-509.0,0.00014881,2]
[341749980,1731195039575,-509.0,0.00014881,2]
[341749981,1731195039584,-509.0,0.00014881,2]
[341749983,1731195039593,-509.0,0.00014881,2]
[341749985,1731195039602,-509.0,0.00014881,2]
[341749987,1731195039612,-509.0,0.00014881,2]
[341749990,1731195039621,-509.0,0.00014881,2]
[341749992,1731195039630,-513.53294397,0.00014881,2]
[341749994,1731195039640,-150.0,0.00014881,2]
[341749996,1731195039650,-150.0,0.00014881,2]
[341749997,1731195039659,-150.0,0.00014881,2]
[341749999,1731195039669,-150.0,0.00014881,2]
[341750001,1731195039679,-172.37860407,0.00014881,2]
[341750004,1731195039688,-500.0,0.00014881,2]
[341750005,1731195039698,-500.0,0.00014881,2]
[341750007,1731195039707,-713.88691118,0.00014881,2]
[341750009,1731195039716,-150.0,0.00014883,2]
[341750012,1731195039726,-150.0,0.00014883,2]
[341750013,1731195039735,-150.488,0.00014884,2]
[341750016,1731195039745,-181.534,0.00014884,2]
[341750018,1731195039754,-150.0,0.00014884,2]
[341750019,1731195039764,-250.0,0.00014884,2]
[341750021,1731195039774,-248.7,0.00014884,2]
[341750024,1731195039783,-150.363,0.00014884,2]
[341750025,1731195039792,-203.22,0.00014884,2]
[341750027,1731195039804,-204.2,0.00014884,2]
[341750030,1731195039813,-150.0,0.00014886,2]
[341750031,1731195039822,-150.0,0.00014886,2]
[341750033,1731195039831,-150.0,0.00014889,2]
[341750036,1731195039840,-150.0,0.00014891,2]
[341750037,1731195039850,-8500.0,0.00014891,2]
[341750040,1731195039859,-150.0,0.00014892,2]
[341750042,1731195039868,-150.0,0.00014894,2]
[341750043,1731195039877,-150.0,0.00014895,2]
[341750045,1731195039886,-1500.0,0.00014897,2]
[341750048,1731195039895,-150.0,0.00014897,2]
[341750050,1731195039904,-1000.0,0.00014899,2]
[341750052,1731195039914,-1000.0,0.00014899,2]
[341750054,1731195039923,-150.0,0.00014899,2]
[341750056,1731195039932,-350.66025093,0.000149,2]
[341750058,1731195039941,-165.013284,0.000149,2]
[341750060,1731195039950,-165.013284,0.000149,2]
[341750061,1731195039959,-151.0,0.000149,2]
[341750063,1731195039968,-151.0,0.000149,2]
[341750066,1731195039978,-151.0,0.000149,2]
[341750067,1731195039987,-151.0,0.000149,2]
[341750069,1731195039996,-1737.544077,0.000149,2]
[341750071,1731195040005,-151.0,0.000149,2]
[341750073,1731195040015,-8500.0,0.000149,2]
[341750075,1731195040024,-164.33035333,0.000149,2]
[341750078,1731195040033,-150.0,0.000149,2]
[341750079,1731195040042,-498.229716,0.000149,2]
[341750082,1731195040053,-8500.0,0.000149,2]
[341750084,1731195040062,-186.30225704,0.000149,2]
[341750086,1731195040071,-164.69155318,0.000149,2]
[341750087,1731195040080,-842.52301581,0.000149,2]
[341750089,1731195040090,-899.63658158,0.000149,2]
[341750092,1731195040099,-180.19826567,0.000149,2]
[341750094,1731195040108,-150.0,0.00014904,2]
[341750096,1731195040117,-1356.37410551,0.00014904,2]
[341750098,1731195040126,-150.0,0.00014905,2]
[341750100,1731195040136,-150.0,0.00014912,2]
[341750102,1731195040146,-150.0,0.00014916,2]
[341750104,1731195040157,-150.0,0.00014919,2]
[341750106,1731195040166,-150.0,0.0001492,2]
[341750108,1731195040175,-1500.0,0.00014924,2]
[341750110,1731195040185,-150.0,0.00014929,2]
[341750112,1731195040194,-1500.0,0.0001493,2]
[341750114,1731195040204,-150.0,0.00014932,2]
[341750116,1731195040213,-150.0,0.00014939,2]
[341750118,1731195040222,-150.0,0.00014946,2]
[341750120,1731195040232,-150.0,0.00014947,2]
[341750122,1731195040241,-150.0,0.00014949,2]
[341750124,1731195040250,-150.0,0.0001495,2]
[341750126,1731195040259,-150.0,0.00014953,2]
[341750128,1731195040268,-150.0,0.00014956,2]
[341750130,1731195040277,-150.0,0.00014962,2]
[341750132,1731195040286,-150.0,0.00014967,2]
[341750134,1731195040297,-177.24,0.00014968,2]
[341750136,1731195040306,-150.0,0.00014968,2]
[341750138,1731195040316,-150.0,0.00014968,2]
[341750139,1731195040326,-150.0,0.00014971,2]
[341750140,1731195040335,-500.0,0.00014973,2]
[341750141,1731195040344,-150.0,0.00014975,2]
[341750142,1731195040353,-153.15857523,0.00014984,2]
[341750143,1731195040363,-44629.0,0.00014986,2]
[341750144,1731195040372,-217.05276593,0.00014989,2]
[341750145,1731195040382,-150.0,0.00014989,2]
[341750146,1731195040391,-500.0,0.00014989,2]
[341750147,1731195040399,-368.8410691,0.00014989,2]
[341750149,1731195040408,-500.0,0.00014989,2]
[341750151,1731195040417,-500.0,0.00014989,2]
[341750153,1731195040427,-500.0,0.00014989,2]
[341750155,1731195040436,-500.0,0.00014989,2]
[341750157,1731195040445,-500.0,0.00014989,2]
[341750158,1731195040454,-500.0,0.00014989,2]
[341750161,1731195040463,-500.0,0.00014989,2]
[341750163,1731195040473,-165.013284,0.0001499,2]
[341750165,1731195040482,-165.013284,0.0001499,2]
[341750166,1731195040491,-165.013284,0.0001499,2]
[341750168,1731195040500,-165.013284,0.0001499,2]
[341750170,1731195040509,-151.0,0.0001499,2]
[341750172,1731195040518,-152.470273,0.0001499,2]
[341750174,1731195040527,-151.0,0.0001499,2]
[341750176,1731195040536,-151.0,0.0001499,2]
[341750178,1731195040545,-151.0,0.0001499,2]
[341750180,1731195040555,-151.0,0.0001499,2]
[341750182,1731195040564,-151.0,0.0001499,2]
[341750184,1731195040574,-1737.544077,0.0001499,2]
[341750186,1731195040584,-151.0,0.0001499,2]
[341750188,1731195040593,-151.0,0.0001499,2]
[341750190,1731195040603,-151.0,0.0001499,2]
[341750192,1731195040612,-151.0,0.0001499,2]
[341750194,1731195040621,-151.0,0.0001499,2]
[341750196,1731195040630,-151.0,0.0001499,2]
[341750198,1731195040639,-151.0,0.0001499,2]
[341750200,1731195040649,-151.0,0.0001499,2]
[341750202,1731195040658,-151.0,0.0001499,2]
[341750204,1731195040667,-151.0,0.0001499,2]
[341750206,1731195040677,-151.0,0.0001499,2]
[341750208,1731195040686,-151.0,0.0001499,2]
[341750210,1731195040696,-160.000255,0.0001499,2]
[341750212,1731195040705,-2011.8273126,0.0001499,2]
[341750214,1731195040715,-1786.2456109,0.0001499,2]
[341750216,1731195040724,-1560.6639093,0.0001499,2]
[341750218,1731195040734,-403.8587209,0.0001499,2]
[341750220,1731195040743,-357.7286817,0.0001499,2]
[341750222,1731195040752,-311.5986425,0.0001499,2]
[341750224,1731195040762,-20318.8539783,0.0001499,2]
[341750226,1731195040771,-17997.9692685,0.0001499,2]
[341750228,1731195040781,-705.96297091,0.0001499,2]
[341750344,1731195041855,-2469.86278306,0.0001499,2]
[341750355,1731195041946,-390.02986478,0.0001499,2]
[341750357,1731195041957,-742.11629914,0.0001499,2]
[341750359,1731195041970,-277.0527081,0.0001499,2]
[341750379,1731195042158,-2033.71320267,0.0001499,2]
[341750382,1731195042169,-1007.18692357,0.0001499,2]
[341750384,1731195042181,-8051.15980647,0.0001499,2]
[341750386,1731195042190,-668.9884346,0.0001499,2]
[341750388,1731195042199,-592.5744286,0.0001499,2]
[341750390,1731195042208,-516.1604227,0.0001499,2]
[341750392,1731195042217,-4231.04826702,0.0001499,2]
[341750405,1731195042333,-257.82237684,0.0001499,2]
[341750413,1731195042392,-4137.53482654,0.0001499,2]
[341750415,1731195042402,-7623.1297029,0.0001499,2]
[341750417,1731195042411,-6619.8539354,0.0001499,2]
[341750419,1731195042420,-6433.4239108,0.0001499,2]
[341750421,1731195042429,-5671.5710792,0.0001499,2]
[341750423,1731195042438,-4909.7182477,0.0001499,2]
[341750425,1731195042448,-30000.0,0.00014999,2]
[341750427,1731195042457,-83028.76509002,0.00014999,2]
[341750429,1731195042466,-55658.07007436,0.00014999,2]
[341750431,1731195042474,-2371.0,0.00014999,2]
[341750433,1731195042483,-165.013284,0.00014999,2]
[341750435,1731195042492,-165.013284,0.00014999,2]
[341750437,1731195042501,-165.013284,0.00014999,2]
[341750439,1731195042511,-165.013284,0.00014999,2]
[341750441,1731195042520,-151.0,0.00014999,2]
[341750444,1731195042530,-151.0,0.00014999,2]
[341750446,1731195042539,-151.0,0.00014999,2]
[341750448,1731195042551,-244.953996,0.00014999,2]
[341750450,1731195042560,-1737.544077,0.00014999,2]
[341750452,1731195042569,-1737.544077,0.00014999,2]
[341750454,1731195042579,-151.0,0.00014999,2]
[341750456,1731195042588,-151.0,0.00014999,2]
[341750458,1731195042599,-151.0,0.00014999,2]
[341750460,1731195042609,-151.0,0.00014999,2]
[341750462,1731195042617,-151.0,0.00014999,2]
[341750464,1731195042627,-151.0,0.00014999,2]
[341750467,1731195042636,-151.0,0.00014999,2]
[341750469,1731195042646,-151.0,0.00014999,2]
[341750470,1731195042655,-151.0,0.00014999,2]
[341750472,1731195042664,-151.0,0.00014999,2]
[341750474,1731195042674,-151.0,0.00014999,2]
[341750475,1731195042684,-151.0,0.00014999,2]
[341750476,1731195042693,-151.0,0.00014999,2]
[341750477,1731195042702,-151.0,0.00014999,2]
[341750478,1731195042711,-151.0,0.00014999,2]
[341750479,1731195042719,-151.0,0.00014999,2]
[341750482,1731195042728,-151.0,0.00014999,2]
[341750485,1731195042738,-151.0,0.00014999,2]
[341750486,1731195042747,-219.427947,0.00014999,2]
[341750488,1731195042756,-151.0,0.00014999,2]
[341750490,1731195042765,-151.0,0.00014999,2]
[341750492,1731195042774,-151.582744,0.00014999,2]
[341750494,1731195042784,-151.0,0.00014999,2]
[341750496,1731195042794,-151.0,0.00014999,2]
[341750499,1731195042804,-151.0,0.00014999,2]
[341750501,1731195042815,-283.259474,0.00014999,2]
[341750502,1731195042826,-283.259474,0.00014999,2]
[341750504,1731195042835,-153.007968,0.00014999,2]
[341750506,1731195042844,-153.007968,0.00014999,2]
[341750508,1731195042854,-2661.677185,0.00014999,2]
[341750511,1731195042866,-2661.677185,0.00014999,2]
[341750512,1731195042879,-159.094576,0.00014999,2]
[341750514,1731195042890,-618.26,0.00014999,2]
[341750517,1731195042900,-89020.73606277,0.00015,2]
[341750614,1731195043824,-875.81996469,0.00014823,2]
[341750616,1731195043835,-686.1,0.00014823,2]
[341750619,1731195043862,-622.27349692,0.00014823,2]
[341750621,1731195043874,-313.66703268,0.00014823,2]
[341750625,1731195043900,-1399.38148136,0.00014823,2]
[341750627,1731195043911,-2363.48999999,0.00014823,2]
[341750629,1731195043923,-504.02500026,0.00014823,2]
[341750631,1731195043935,-339.5935685,0.00014823,2]
[341750663,1731195045278,-1496.1724681,0.00014686,2]
[341750664,1731195045290,-671.50631731,0.00014686,2]
[341750665,1731195045301,-4293.8787322,0.00014823,2]
[341750666,1731195045317,-943.01301495,0.00014823,2]
[341750667,1731195045335,-1281.75770845,0.00014823,2]
[341750668,1731195045345,-558.52653832,0.000149,2]
[341750669,1731195045355,-4200.25331503,0.00015,2]
[341750670,1731195045375,-20192.0,0.00015,2]
[341750671,1731195045386,-38393.14389835,0.00015,2]
[341750672,1731195045398,-31507.486486,0.00015,2]
[341750673,1731195045410,-10679.04338175,0.00015,2]
[341750674,1731195045478,-30148.95244735,0.00015,2]
[341750677,1731195046832,-1915.44941856,0.00015,2]
[341750678,1731195046844,-959.76253997,0.00015,2]
[341750679,1731195046856,-8553.32442218,0.00015,2]
[341750680,1731195046867,-921.1891161,0.00015,2]
[341750681,1731195046960,-777.2687132,0.00015,2]
[341750682,1731195047005,-2499892.21756078,0.00015,2]
[341750683,1731195047020,-9525.86949963,0.00015,2]
[341750684,1731195047031,-5056.98697932,0.00015,2]
[341750685,1731195047271,-280.2540104,0.00015,2]
[341750686,1731195047282,-8466.06177562,0.00015,2]
[341750687,1731195047292,-25082.86109472,0.00015,2]
[341750688,1731195047303,-31863.55924598,0.00015,2]
[341750689,1731195130253,800.0,0.00026986,120]